fUSD/lending_fUSD_20250523
["ID","MTS","AMOUNT","RATE_DAILY","PERIOD"]
[362067587,1747968632085,-708.67158549,0.00030014,2]
[362067588,1747968632095,-151.0,0.00030126,7]
[362067589,1747968632104,-372.241898,0.00030126,7]
[362067590,1747968632114,-372.241898,0.00030126,7]
[362067591,1747968632123,-151.0,0.00030136,7]
[362067592,1747968632132,-154.323869,0.00030136,7]
[362067593,1747968632142,-151.0,0.00030136,7]
[362067594,1747968632151,-212.676074,0.00030136,7]
[362067595,1747968632161,-372.241898,0.00030136,7]
[362067597,1747968632170,-372.241898,0.00030136,7]
[362067599,1747968632178,-420.0,0.00030136,5]
[362067601,1747968632185,-356.83595355,0.00030136,5]
[362067603,1747968632193,-208.50967,0.00030136,7]
[362067605,1747968632201,-420.0,0.00030136,5]
[362067607,1747968632208,-208.50967,0.00030136,7]
[362067608,1747968632218,-420.0,0.00030136,5]
[362067609,1747968632227,-420.0,0.00030136,5]
[362067610,1747968632237,-420.0,0.00030136,5]
[362067611,1747968632246,-420.0,0.00030136,5]
[362067612,1747968632255,-307.08084353,0.00030136,5]
[362067613,1747968632265,-468.49249733,0.00030136,5]
[362067614,1747968632274,-420.0,0.00030136,5]
[362067615,1747968632283,-505.0342648,0.00030136,5]
[362067616,1747968632292,-420.0,0.00030136,5]
[362067617,1747968632302,-420.0,0.00030136,5]
[362067618,1747968632313,-420.0,0.00030136,5]
[362067620,1747968632323,-420.0,0.00030136,5]
[362067621,1747968632333,-420.0,0.00030136,5]
[362067623,1747968632342,-420.0,0.00030136,5]
[362067625,1747968632351,-420.0,0.00030136,5]
[362067627,1747968632361,-668.78,0.00030136,2]
[362067629,1747968632370,-420.0,0.00030136,5]
[362067631,1747968632379,-435.32073682,0.00030136,5]
[362067634,1747968632388,-543.31056753,0.00030136,5]
[362067637,1747968632397,-420.0,0.00030136,5]
[362067640,1747968632406,-432.29548459,0.00030136,5]
[362067643,1747968632417,-420.0,0.00030136,5]
[362067646,1747968632426,-420.0,0.00030136,5]
[362067649,1747968632435,-428.04604039,0.00030136,5]
[362067652,1747968632444,-429.4627686,0.00030136,5]
[362067655,1747968632454,-428.68629288,0.00030136,5]
[362067658,1747968632463,-427.27567592,0.00030136,5]
[362067660,1747968632473,-425.75879288,0.00030136,5]
[362067662,1747968632483,-428.76176908,0.00030136,5]
[362067664,1747968632492,-420.0,0.00030136,5]
[362067666,1747968632501,-424.36905603,0.00030136,5]
[362067669,1747968632510,-420.0,0.00030136,5]
[362067672,1747968632520,-420.0,0.00030136,5]
[362067675,1747968632529,-420.0,0.00030136,5]
[362067678,1747968632539,-420.0,0.00030136,5]
[362067681,1747968632548,-424.03003547,0.00030136,5]
[362067684,1747968632558,-420.0,0.00030136,5]
[362067687,1747968632567,-420.0,0.00030136,5]
[362067690,1747968632576,-420.0,0.00030136,5]
[362067693,1747968632586,-420.0,0.00030136,5]
[362067695,1747968632595,-420.0,0.00030136,5]
[362067697,1747968632604,-424.17192919,0.00030136,5]
[362067699,1747968632613,-423.71664851,0.00030136,5]
[362067701,1747968632622,-453.04679237,0.00030136,5]
[362067703,1747968632631,-434.01620207,0.00030136,5]
[362067705,1747968632641,-420.0,0.00030136,5]
[362067707,1747968632650,-420.0,0.00030136,5]
[362067709,1747968632659,-321.64912252,0.00030136,5]
[362067711,1747968632668,-440.96185693,0.00030136,5]
[362067713,1747968632678,-420.0,0.00030136,5]
[362067715,1747968632687,-420.0,0.00030136,5]
[362067717,1747968632696,-420.0,0.00030136,5]
[362067719,1747968632706,-420.0,0.00030136,5]
[362067721,1747968632715,-421.76826188,0.00030136,5]
[362067723,1747968632726,-420.0,0.00030136,5]
[362067725,1747968632736,-420.0,0.00030136,5]
[362067727,1747968632745,-437.7894889,0.00030136,5]
[362067729,1747968632755,-420.0,0.00030136,5]
[362067731,1747968632764,-455.8726812,0.00030136,5]
[362067733,1747968632774,-420.0,0.00030136,5]
[362067735,1747968632784,-463.08619385,0.00030136,5]
[362067737,1747968632793,-421.74539852,0.00030136,5]
[362067739,1747968632803,-382.34669001,0.00030136,5]
[362067741,1747968632812,-420.0,0.00030136,5]
[362067743,1747968632821,-420.0,0.00030136,5]
[362067745,1747968632830,-420.0,0.00030136,5]
[362067747,1747968632840,-427.76120883,0.00030136,5]
[362067749,1747968632849,-420.0,0.00030136,5]
[362067751,1747968632858,-428.42167281,0.00030136,5]
[362067752,1747968632867,-420.0,0.00030136,5]
[362067754,1747968632876,-420.0,0.00030136,5]
[362067756,1747968632885,-316.97154914,0.00030136,5]
[362067758,1747968632894,-420.0,0.00030136,5]
[362067760,1747968632904,-480.94522668,0.00030136,5]
[362067762,1747968632913,-420.0,0.00030136,5]
[362067764,1747968632924,-420.0,0.00030136,5]
[362067766,1747968632933,-383.66196371,0.00030136,5]
[362067768,1747968632943,-420.0,0.00030136,5]
[362067770,1747968632952,-465.68676052,0.00030136,5]
[362067772,1747968632961,-448.7917514,0.00030136,5]
[362067774,1747968632971,-420.0,0.00030136,5]
[362067776,1747968632981,-420.0,0.00030136,5]
[362067778,1747968632990,-420.0,0.00030136,5]
[362067780,1747968632999,-300.0,0.00030136,5]
[362067782,1747968633008,-420.0,0.00030136,5]
[362067784,1747968633017,-201.53241354,0.00030136,5]
[362067786,1747968633027,-420.0,0.00030136,5]
[362067788,1747968633036,-420.0,0.00030136,5]
[362067790,1747968633045,-438.85295178,0.00030136,5]
[362067792,1747968633055,-420.0,0.00030136,5]
[362067794,1747968633064,-420.0,0.00030136,5]
[362067796,1747968633073,-527.83614681,0.00030136,5]
[362067798,1747968633082,-420.0,0.00030136,5]
[362067799,1747968633092,-420.0,0.00030136,5]
[362067801,1747968633100,-465.76530533,0.00030136,5]
[362067803,1747968633110,-420.0,0.00030136,5]
[362067805,1747968633119,-433.67419429,0.00030136,5]
[362067807,1747968633129,-444.36163457,0.00030136,5]
[362067809,1747968633138,-461.87078216,0.00030136,5]
[362067811,1747968633147,-420.0,0.00030136,5]
[362067813,1747968633156,-435.46675274,0.00030136,5]
[362067815,1747968633165,-424.02041225,0.00030136,5]
[362067817,1747968633174,-420.0,0.00030136,5]
[362067819,1747968633184,-429.40329206,0.00030136,5]
[362067821,1747968633194,-434.8609037,0.00030136,5]
[362067823,1747968633203,-437.94264397,0.00030136,5]
[362067825,1747968633212,-434.45801314,0.00030136,5]
[362067827,1747968633222,-432.10287214,0.00030136,5]
[362067829,1747968633232,-435.14324571,0.00030136,5]
[362067831,1747968633241,-420.0,0.00030136,5]
[362067833,1747968633251,-510.45740191,0.00030136,5]
[362067835,1747968633260,-512.92933607,0.00030136,5]
[362067837,1747968633270,-440.45150359,0.00030136,5]
[362067839,1747968633280,-420.0,0.00030136,5]
[362067841,1747968633289,-414.0,0.00030136,5]
[362067843,1747968633298,-432.1114228,0.00030136,5]
[362067845,1747968633307,-435.52045993,0.00030136,5]
[362067846,1747968633319,-423.10479672,0.00030136,5]
[362067848,1747968633329,-434.62655967,0.00030136,5]
[362067850,1747968633339,-426.12457764,0.00030136,5]
[362067852,1747968633348,-439.63994599,0.00030136,5]
[362067854,1747968633358,-419.79576156,0.00030136,5]
[362067856,1747968633368,-426.63098716,0.00030136,5]
[362067858,1747968633377,-420.0,0.00030136,5]
[362067860,1747968633387,-429.06003072,0.00030136,5]
[362067862,1747968633397,-444.30700013,0.00030136,5]
[362067864,1747968633406,-441.12889865,0.00030136,5]
[362067866,1747968633416,-431.43532931,0.00030136,5]
[362067868,1747968633426,-437.4634565,0.00030136,5]
[362067870,1747968633436,-427.34471801,0.00030136,5]
[362067872,1747968633445,-444.8039066,0.00030136,5]
[362067874,1747968633455,-436.77330306,0.00030136,5]
[362067876,1747968633465,-432.85931833,0.00030136,5]
[362067878,1747968633475,-290.1406742,0.00030136,5]
[362067880,1747968633485,-159.06441559,0.00030136,5]
[362067882,1747968633495,-151.16479345,0.00030136,5]
[362067884,1747968633504,-151.99940856,0.00030136,5]
[362067886,1747968633513,-152.59800254,0.00030136,5]
[362067888,1747968633523,-152.89299887,0.00030136,2]
[362067890,1747968633533,-179.46492413,0.00030136,5]
[362067892,1747968633543,-5137.37785559,0.00030171,2]
[362067894,1747968633552,-500.0,0.00030172,2]
[362067896,1747968633562,-500.0,0.00030172,2]
[362067898,1747968633571,-500.0,0.00030172,2]
[362067900,1747968633581,-500.0,0.00030172,2]
[362067902,1747968633591,-500.0,0.00030172,2]
[362067904,1747968633600,-500.0,0.00030172,2]
[362067906,1747968633610,-500.0,0.00030172,2]
[362067908,1747968633619,-500.0,0.00030172,2]
[362067910,1747968633628,-500.0,0.00030172,2]
[362067912,1747968633638,-298.61659767,0.00030172,2]
[362067914,1747968633648,-487.89668376,0.00030172,2]
[362067916,1747968633657,-500.0,0.00030172,2]
[362067918,1747968633667,-500.0,0.00030172,2]
[362067919,1747968633677,-500.0,0.00030172,2]
[362067921,1747968633687,-500.0,0.00030172,2]
[362067923,1747968633696,-500.0,0.00030172,2]
[362067926,1747968633707,-500.0,0.00030172,2]
[362067927,1747968633717,-306.35423315,0.00030172,2]
[362067930,1747968633734,-193.64576685,0.00030172,2]
[362067932,1747968633744,-500.0,0.00030172,2]
[362067934,1747968633753,-500.0,0.00030172,2]
[362067936,1747968633763,-3.76477691,0.00030172,2]
[362067938,1747968633775,-615.36462309,0.00030172,2]
[362067940,1747968633785,-2148.5403056,0.00030172,2]
[362067944,1747968633815,-310.17040042,0.00030172,2]
[362067946,1747968633829,-41.28929398,0.00030172,2]
[362067948,1747968633839,-1714.10239984,0.00030173,2]
[362067952,1747968633871,-389.79369738,0.00030173,2]
[362067955,1747968633881,-167.14623156,0.00030173,2]
[362067957,1747968633891,-197.0,0.000302,30]
[362067959,1747968633901,-601.02104849,0.000302,2]
[362067961,1747968633917,-140.97895151,0.000302,2]
[362067963,1747968633928,-150.0,0.00030201,2]
[362067965,1747968633938,-151.79012143,0.00030207,2]
[362067967,1747968633947,-150.0,0.00030214,2]
[362067969,1747968633957,-150.0,0.0003022,2]
[362067971,1747968633966,-182.70432,0.00030224,7]
[362067973,1747968633977,-372.241898,0.00030224,7]
[362067975,1747968633986,-312.71914796,0.00030224,7]
[362067977,1747968634002,-59.52275004,0.00030224,7]
[362067979,1747968634011,-150.0,0.00030228,2]
[362067981,1747968634021,-150.0,0.00030237,2]
[362067983,1747968634030,-147.04724996,0.00030254,2]
[362067986,1747968634048,-2.95275004,0.00030254,2]
[362067988,1747968634057,-151.0,0.00030257,7]
[362067990,1747968634067,-212.676074,0.00030257,7]
[362067992,1747968634077,-208.50967,0.00030257,7]
[362067994,1747968634087,-208.50967,0.00030257,7]
[362067996,1747968634097,-150.0,0.00030261,2]
[362068020,1747968634106,-259.97,0.00030262,2]
[362068022,1747968634346,-758.435823,0.00030263,3]
[362068026,1747968634371,-4448.06882893,0.00030263,3]
[362068028,1747968634382,-1025.9476908,0.00030263,3]
[362068030,1747968634393,-14902.78228207,0.00030263,3]
[362068235,1747968637750,-1853.41161283,0.00030263,3]
[362068236,1747968637762,-44406.34298237,0.00030263,3]
[362068237,1747968637772,-508.77792147,0.00030271,5]
[362068238,1747968637781,-420.0,0.00030271,5]
[362068239,1747968637791,-420.0,0.00030271,5]
[362068240,1747968637802,-420.0,0.00030271,5]
[362068241,1747968637812,-420.0,0.00030271,5]
[362068242,1747968637822,-420.0,0.00030271,5]
[362068243,1747968637833,-420.0,0.00030271,5]
[362068244,1747968637843,-407.86455519,0.00030271,5]
[362068245,1747968637853,-420.0,0.00030271,5]
[362068246,1747968637864,-334.63533705,0.00030271,5]
[362068247,1747968637883,-85.36466295,0.00030271,5]
[362068248,1747968637892,-186.91968919,0.00030271,5]
[362068249,1747968637910,-233.08031081,0.00030271,5]
[362068250,1747968637921,-225.64559728,0.00030271,5]
[362068251,1747968637932,-169.72234191,0.00030271,5]
[362068441,1747968639962,-250.27765809,0.00030271,5]
[362068443,1747968639971,-514.30693815,0.00030271,2]
[362068445,1747968639981,-17.42200219,0.00030271,5]
[362068447,1747968639992,-402.57799781,0.00030271,5]
[362068449,1747968640002,-420.0,0.00030271,5]
[362068451,1747968640012,-420.0,0.00030271,5]
[362068453,1747968640021,-420.0,0.00030271,5]
[362068455,1747968640030,-187.29577313,0.00030271,5]
[362068457,1747968640041,-232.70422687,0.00030271,5]
[362068459,1747968640051,-420.0,0.00030271,5]
[362068461,1747968640060,-420.0,0.00030271,5]
[362068463,1747968640069,-35.58577316,0.00030271,5]
[362068469,1747968640120,-308.9260811,0.00030271,5]
[362068471,1747968640130,-420.0,0.00030271,5]
[362068473,1747968640139,-420.0,0.00030271,5]
[362068475,1747968640148,-420.0,0.00030271,5]
[362068477,1747968640158,-420.0,0.00030271,5]
[362068479,1747968640167,-420.0,0.00030271,5]
[362068481,1747968640177,-611.82,0.00030271,2]
[362068483,1747968640186,-289.76327642,0.00030271,5]
[362068485,1747968640197,-183.52542202,0.00030271,5]
[362068487,1747968640207,-420.0,0.00030271,5]
[362068489,1747968640217,-420.0,0.00030271,5]
[362068491,1747968640226,-309.9777877,0.00030271,5]
[362068493,1747968640237,-420.0,0.00030271,5]
[362068495,1747968640246,-434.89417435,0.00030271,5]
[362068496,1747968640254,-420.0,0.00030271,5]
[362068498,1747968640264,-433.47659184,0.00030271,5]
[362068500,1747968640273,-183.33,0.00030271,5]
[362068502,1747968640283,-420.0,0.00030271,5]
[362068504,1747968640293,-420.0,0.00030271,5]
[362068506,1747968640302,-420.0,0.00030271,5]
[362068508,1747968640312,-420.0,0.00030271,5]
[362068510,1747968640324,-167.46176333,0.00030271,5]
[362068512,1747968640334,-557.00442762,0.00030271,5]
[362068514,1747968640344,-420.0,0.00030271,5]
[362068516,1747968640353,-420.0,0.00030271,5]
[362068518,1747968640364,-420.0,0.00030271,5]
[362068520,1747968640373,-420.0,0.00030271,5]
[362068522,1747968640382,-420.0,0.00030271,5]
[362068524,1747968640395,-564.85251739,0.00030271,5]
[362068526,1747968640405,-362.08075912,0.00030271,5]
[362068528,1747968640415,-420.0,0.00030271,5]
[362068530,1747968640425,-420.0,0.00030272,5]
[362068532,1747968640435,-420.0,0.00030272,5]
[362068534,1747968640445,-83.39655663,0.00030272,5]
[362068536,1747968640457,-336.60344337,0.00030272,5]
[362068539,1747968640467,-420.0,0.00030272,5]
[362068540,1747968640477,-425.88843556,0.00030272,5]
[362068542,1747968640487,-470.32240541,0.00030272,5]
[362068544,1747968640497,-420.0,0.00030272,5]
[362068546,1747968640507,-420.0,0.00030272,5]
[362068548,1747968640517,-420.0,0.00030272,5]
[362068551,1747968640526,-420.0,0.00030272,5]
[362068553,1747968640535,-420.0,0.00030272,5]
[362068556,1747968640545,-420.0,0.00030272,5]
[362068558,1747968640555,-420.0,0.00030272,5]
[362068560,1747968640565,-420.0,0.00030272,5]
[362068562,1747968640574,-628.62,0.00030272,5]
[362068564,1747968640584,-420.0,0.00030272,5]
[362068566,1747968640594,-420.0,0.00030272,5]
[362068568,1747968640603,-420.0,0.00030272,5]
[362068570,1747968640612,-536.28453247,0.00030272,5]
[362068572,1747968640622,-420.0,0.00030272,5]
[362068574,1747968640631,-420.0,0.00030272,5]
[362068576,1747968640640,-443.98073299,0.00030272,5]
[362068578,1747968640650,-420.0,0.00030272,5]
[362068580,1747968640659,-420.0,0.00030272,5]
[362068581,1747968640668,-420.0,0.00030272,5]
[362068583,1747968640678,-420.0,0.00030272,5]
[362068585,1747968640687,-420.0,0.00030272,5]
[362068587,1747968640697,-420.0,0.00030272,5]
[362068590,1747968640711,-420.0,0.00030272,5]
[362068592,1747968640720,-420.0,0.00030272,5]
[362068594,1747968640731,-420.0,0.00030272,5]
[362068595,1747968640741,-420.0,0.00030272,5]
[362068597,1747968640751,-1000.0,0.00030272,2]
[362068599,1747968640760,-420.0,0.00030272,5]
[362068601,1747968640769,-420.0,0.00030272,5]
[362068603,1747968640779,-420.0,0.00030272,5]
[362068605,1747968640788,-476.63550644,0.00030272,5]
[362068607,1747968640798,-420.0,0.00030272,5]
[362068609,1747968640808,-420.0,0.00030272,5]
[362068611,1747968640818,-420.0,0.00030272,5]
[362068613,1747968640828,-420.0,0.00030272,5]
[362068615,1747968640841,-420.0,0.00030272,5]
[362068617,1747968640850,-420.0,0.00030272,5]
[362068619,1747968640860,-420.0,0.00030272,5]
[362068621,1747968640869,-420.0,0.00030272,5]
[362068623,1747968640879,-420.0,0.00030272,5]
[362068625,1747968640888,-893.28,0.00030272,5]
[362068627,1747968640898,-420.0,0.00030272,5]
[362068629,1747968640908,-777.36,0.00030272,5]
[362068631,1747968640918,-1482.99,0.00030272,5]
[362068633,1747968640928,-420.0,0.00030272,5]
[362068635,1747968640937,-420.0,0.00030272,5]
[362068637,1747968640947,-420.0,0.00030272,5]
[362068639,1747968640957,-420.0,0.00030272,5]
[362068641,1747968640967,-420.0,0.00030272,5]
[362068643,1747968640976,-420.0,0.00030272,5]
[362068645,1747968640987,-151.0,0.00030272,7]
[362068647,1747968640996,-420.0,0.00030272,5]
[362068649,1747968641006,-420.0,0.00030272,5]
[362068651,1747968641015,-420.0,0.00030272,5]
[362068653,1747968641024,-420.0,0.00030272,5]
[362068655,1747968641034,-420.0,0.00030272,5]
[362068657,1747968641043,-420.0,0.00030272,5]
[362068659,1747968641052,-420.0,0.00030272,5]
[362068661,1747968641061,-673.67,0.00030272,5]
[362068663,1747968641071,-420.0,0.00030272,5]
[362068665,1747968641080,-420.0,0.00030272,5]
[362068667,1747968641090,-420.0,0.00030272,5]
[362068669,1747968641099,-420.0,0.00030272,5]
[362068671,1747968641108,-420.0,0.00030272,5]
[362068673,1747968641118,-4442.79,0.00030272,5]
[362068675,1747968641127,-152.865932,0.00030272,7]
[362068677,1747968641136,-420.0,0.00030272,5]
[362068679,1747968641146,-420.0,0.00030272,5]
[362068681,1747968641155,-420.0,0.00030272,5]
[362068683,1747968641164,-420.0,0.00030272,5]
[362068685,1747968641173,-420.0,0.00030272,5]
[362068687,1747968641182,-420.0,0.00030272,5]
[362068688,1747968641192,-420.0,0.00030272,5]
[362068690,1747968641201,-151.0,0.00030272,7]
[362068692,1747968641211,-420.0,0.00030272,5]
[362068694,1747968641220,-514.11,0.00030272,5]
[362068696,1747968641229,-1561.26,0.00030272,5]
[362068698,1747968641238,-420.0,0.00030272,5]
[362068700,1747968641247,-420.0,0.00030272,5]
[362068702,1747968641257,-420.0,0.00030272,5]
[362068704,1747968641266,-420.0,0.00030272,5]
[362068706,1747968641275,-420.0,0.00030272,5]
[362068708,1747968641285,-151.0,0.00030272,7]
[362068710,1747968641294,-420.0,0.00030272,5]
[362068712,1747968641303,-420.0,0.00030272,5]
[362068714,1747968641312,-255.849196,0.00030272,7]
[362068716,1747968641326,-255.849196,0.00030272,7]
[362068718,1747968641336,-420.0,0.00030272,5]
[362068720,1747968641345,-151.0,0.00030272,7]
[362068722,1747968641354,-460.47,0.00030272,5]
[362068724,1747968641365,-3147.17061976,0.00030272,5]
[362068747,1747968641578,-1227.58938024,0.00030272,5]
[362068749,1747968641587,-420.0,0.00030272,5]
[362068751,1747968641596,-420.0,0.00030272,5]
[362068753,1747968641605,-9058.73,0.00030272,5]
[362068755,1747968641615,-420.0,0.00030272,5]
[362068757,1747968641624,-420.0,0.00030272,5]
[362068759,1747968641633,-420.0,0.00030272,5]
[362068761,1747968641642,-420.0,0.00030272,5]
[362068763,1747968641652,-538.03,0.00030272,5]
[362068765,1747968641661,-420.0,0.00030272,5]
[362068767,1747968641670,-198.390681,0.00030272,7]
[362068769,1747968641679,-420.0,0.00030272,5]
[362068771,1747968641689,-236.9677783,0.00030272,5]
[362068772,1747968641698,-420.0,0.00030272,5]
[362068774,1747968641707,-198.390681,0.00030272,7]
[362068776,1747968641717,-420.0,0.00030272,5]
[362068778,1747968641726,-686.42,0.00030272,5]
[362068780,1747968641736,-420.0,0.00030272,5]
[362068782,1747968641745,-420.0,0.00030272,5]
[362068784,1747968641755,-420.0,0.00030272,5]
[362068786,1747968641764,-949.1,0.00030272,5]
[362068788,1747968641773,-420.0,0.00030272,5]
[362068790,1747968641783,-264.145508,0.00030272,7]
[362068792,1747968641792,-420.0,0.00030272,5]
[362068794,1747968641802,-264.145508,0.00030272,7]
[362068796,1747968641811,-430.89798678,0.00030272,5]
[362068798,1747968641822,-420.0,0.00030272,5]
[362068799,1747968641832,-420.0,0.00030272,5]
[362068800,1747968641842,-420.0,0.00030272,5]
[362068801,1747968641851,-420.0,0.00030272,5]
[362068802,1747968641861,-420.0,0.00030272,5]
[362068803,1747968641872,-165.8892472,0.00030272,5]
[362068804,1747968641881,-482.88714213,0.00030272,5]
[362068805,1747968641891,-76.32805155,0.00030272,5]
[362068806,1747968641903,-343.67194845,0.00030272,5]
[362068807,1747968641912,-520.82,0.00030272,5]
[362068808,1747968641922,-57.90805151,0.00030272,5]
[362068909,1747968642898,-187.40623183,0.00030272,5]
[362068912,1747968642908,-365.40734437,0.00030272,5]
[362068922,1747968642953,-723.02265563,0.00030272,5]
[362068925,1747968642963,-765.07,0.00030272,5]
[362068928,1747968642973,-430.22657935,0.00030272,5]
[362068931,1747968642984,-433.02541029,0.00030272,5]
[362068933,1747968642993,-432.09336109,0.00030272,5]
[362068935,1747968643003,-441.03712379,0.00030272,5]
[362068937,1747968643013,-424.9969265,0.00030272,5]
[362068939,1747968643022,-585.56,0.00030272,5]
[362068941,1747968643031,-425.55279484,0.00030272,5]
[362068943,1747968643041,-426.72129675,0.00030272,5]
[362068945,1747968643050,-1418.01,0.00030272,5]
[362068947,1747968643060,-427.90331252,0.00030272,5]
[362068949,1747968643069,-3586.83,0.00030272,5]
[362068951,1747968643079,-456.23975522,0.00030272,5]
[362068953,1747968643088,-431.47694674,0.00030272,5]
[362068954,1747968643098,-1501.2,0.00030272,5]
[362068956,1747968643107,-438.15,0.00030272,5]
[362068958,1747968643117,-420.0,0.00030272,5]
[362068960,1747968643126,-420.0,0.00030272,5]
[362068962,1747968643135,-420.0,0.00030272,5]
[362068964,1747968643145,-427.4,0.00030272,5]
[362068966,1747968643154,-449.35427602,0.00030272,5]
[362068968,1747968643163,-420.0,0.00030272,5]
[362068970,1747968643173,-420.0,0.00030272,5]
[362068972,1747968643182,-1691.97,0.00030272,5]
[362068974,1747968643191,-420.0,0.00030272,5]
[362068976,1747968643201,-420.0,0.00030272,5]
[362068978,1747968643210,-425.27796583,0.00030272,5]
[362068980,1747968643220,-420.0,0.00030272,5]
[362068982,1747968643230,-420.0,0.00030272,5]
[362068984,1747968643239,-1496.22,0.00030272,5]
[362068986,1747968643248,-420.0,0.00030272,5]
[362068988,1747968643258,-470.0465937,0.00030272,5]
[362068990,1747968643267,-424.18001339,0.00030272,5]
[362068992,1747968643277,-302.3670786,0.00030272,5]
[362068994,1747968643286,-321.83474152,0.00030272,5]
[362068996,1747968643297,-144.1026441,0.00030272,5]
[362068998,1747968643306,-6171.46,0.00030272,5]
[362069000,1747968643316,-420.0,0.00030272,5]
[362069002,1747968643327,-1078.09,0.00030272,5]
[362069004,1747968643336,-2240.06,0.00030272,5]
[362069006,1747968643346,-3136.93,0.00030272,5]
[362069008,1747968643355,-500.49358364,0.00030273,5]
[362069022,1747968643565,-509.68106168,0.00030273,5]
[362069023,1747968643575,-500.86450315,0.00030273,5]
[362069024,1747968643585,-163.4667192,0.00030273,5]
[362069025,1747968643595,-277.29907063,0.00030273,5]
[362069026,1747968643605,-500.97595594,0.00030273,5]
[362069027,1747968643614,-500.0,0.00030273,2]
[362069028,1747968643623,-500.0,0.00030273,5]
[362069029,1747968643634,-500.0,0.00030273,5]
[362069030,1747968643643,-500.0,0.00030273,5]
[362069031,1747968643652,-348.58230741,0.00030273,5]
[362069032,1747968643663,-5000.0,0.00030273,7]
[362069033,1747968643672,-5000.0,0.00030273,7]
[362069034,1747968643682,-5000.0,0.00030273,7]
[362069035,1747968643691,-5000.0,0.00030273,7]
[362069036,1747968643701,-5000.0,0.00030273,7]
[362069037,1747968643711,-5000.0,0.00030273,7]
[362069038,1747968643720,-5000.0,0.00030273,7]
[362069039,1747968643729,-5000.0,0.00030273,7]
[362069040,1747968643740,-5000.0,0.00030273,7]
[362069041,1747968643750,-420.0,0.00030273,5]
[362069042,1747968643760,-5000.0,0.00030273,7]
[362069043,1747968643770,-5000.0,0.00030273,3]
[362069044,1747968643780,-5000.0,0.00030273,3]
[362069045,1747968643789,-545.83096192,0.00030273,5]
[362069046,1747968643799,-5000.0,0.00030273,3]
[362069047,1747968643808,-5000.0,0.00030273,3]
[362069048,1747968643818,-4984.78367853,0.00030273,3]
[362069049,1747968643830,-15.21632147,0.00030273,3]
[362069050,1747968643840,-420.0,0.00030273,5]
[362069051,1747968643850,-5000.0,0.00030273,30]
[362069052,1747968643859,-420.0,0.00030273,5]
[362069053,1747968643869,-420.0,0.00030273,5]
[362069054,1747968643879,-5000.0,0.00030273,5]
[362069055,1747968643888,-5000.0,0.00030273,5]
[362069056,1747968643897,-5000.0,0.00030273,5]
[362069057,1747968643906,-4000.0,0.00030273,2]
[362069058,1747968643915,-420.0,0.00030273,5]
[362069059,1747968643926,-491.04762194,0.00030273,5]
[362069060,1747968643937,-151.0,0.00030273,7]
[362069061,1747968643946,-420.0,0.00030273,5]
[362069062,1747968643956,-420.0,0.00030273,5]
[362069063,1747968643965,-504.60804151,0.00030273,5]
[362069064,1747968643975,-890.952,0.00030273,25]
[362069065,1747968643987,-167.7426517,0.00030273,5]
[362069066,1747968643997,-420.0,0.00030273,5]
[362069067,1747968644009,-420.0,0.00030273,5]
[362069068,1747968644018,-4000.0,0.00030273,2]
[362069069,1747968644028,-5000.0,0.00030273,2]
[362069070,1747968644037,-2000.0,0.00030273,2]
[362069071,1747968644046,-420.0,0.00030273,5]